[Event "FIDE Women World Blitz 2021"]
[Site "Warsaw"]
[Date "2021.12.30"]
[Round "12.7"]
[White "Lagno, Kateryna"]
[Black "Bivol, Alina"]
[Result "1-0"]
[ECO "C02"]
[WhiteElo "2550"]
[BlackElo "2377"]
[Annotator "ChessBase"]
[PlyCount "47"]
[EventDate "2021.12.29"]
[EventType "swiss"]
[EventCountry "POL"]
[Tiebreak "Cut1 Buchholz"]
[SourceTitle "playchess.com"]
[Source "ChessBase"]
[SourceQuality "1"]
[TimeControl "180+2"]

1. e4 {[%emt 0:00:01]} e6 {[%emt 0:00:01]} 2. d4 {[%emt 0:00:01]} d5 {[%emt 0:
00:01]} 3. e5 {[%emt 0:00:01]} c5 {[%emt 0:00:01]} 4. c3 {[%emt 0:00:01]} Nc6 {
[%emt 0:00:01]} 5. Nf3 {[%emt 0:00:01]} Bd7 {[%emt 0:00:01]} 6. Be2 {[%emt 0:
00:04]} Rc8 {[%emt 0:00:01]} 7. O-O {[%emt 0:00:02]} a6 {[%emt 0:00:01]} 8. Na3
{[%emt 0:00:37]} cxd4 9. cxd4 {[%emt 0:00:01]} Bxa3 {[%emt 0:00:03]} 10. bxa3 {
[%emt 0:00:01]} Nge7 {[%emt 0:00:01]} 11. Bd3 {[%emt 0:00:07]} Na5 {[%emt 0:00:
25]} 12. Rb1 {[%emt 0:00:01]} b5 {[%emt 0:00:10]} 13. a4 {[%emt 0:00:10]} Nc4 {
[%emt 0:00:02]} 14. axb5 {[%emt 0:00:13]} axb5 {[%emt 0:00:01]} 15. Ng5 {
[%emt 0:00:09]} Ng6 {[%emt 0:00:45]} 16. Qh5 {[%emt 0:00:05]} Qb6 {[%emt 0:00:
22]} 17. Nxh7 {[%emt 0:00:13]} Qxd4 {[%emt 0:00:47]} 18. Bxg6 {[%emt 0:00:02]}
fxg6 {[%emt 0:00:01]} 19. Qxg6+ {[%emt 0:00:05]} Kd8 {[%emt 0:00:00]} 20. Ng5 {
[%emt 0:00:14]} Nxe5 {[%emt 0:00:29]} 21. Nxe6+ {[%emt 0:00:06]} Bxe6 {[%emt 0:
00:05]} 22. Qxe6 {[%emt 0:00:01]} Rc6 {[%emt 0:00:02]} 23. Qf5 {[%emt 0:00:20]}
Kc7 {[%emt 0:00:18]} 24. Bf4 {[%emt 0:00:02]} 1-0

[Event "FIDE Women World Blitz 2021"]
[Site "Warsaw"]
[Date "2021.12.30"]
[Round "12.7"]
[White "Parol, Pola"]
[Black "Movsesian, Julia"]
[Result "1-0"]
[ECO "C41"]
[WhiteElo "1823"]
[BlackElo "2322"]
[Annotator "NA"]
[PlyCount "183"]
[EventDate "2021.12.29"]
[EventType "swiss"]
[EventCountry "POL"]
[Tiebreak "Cut1 Buchholz"]
[SourceTitle "playchess.com"]
[Source "ChessBase"]
[SourceQuality "1"]
[TimeControl "180+2"]

1. e4 {[%emt 0:00:01]} d6 {[%emt 0:00:00]} 2. d4 {[%emt 0:00:01]} Nf6 {[%emt 0:
00:01]} 3. Nc3 {[%emt 0:00:00]} Nbd7 {[%emt 0:00:01]} 4. Nf3 {[%emt 0:00:02]}
e5 {[%emt 0:00:00]} 5. Bc4 {[%emt 0:00:03]} Be7 {[%emt 0:00:01]} 6. O-O {
[%emt 0:00:02]} O-O {[%emt 0:00:01]} 7. Re1 {[%emt 0:00:04]} c6 {[%emt 0:00:02]
} 8. a4 {[%emt 0:00:01]} h6 {[%emt 0:00:00]} 9. h3 {[%emt 0:00:01]} Re8 {
[%emt 0:00:01]} 10. Bb3 {[%emt 0:00:04]} Qc7 {[%emt 0:00:01]} 11. Be3 {[%emt 0:
00:02]} Bf8 {[%emt 0:00:01]} 12. dxe5 {[%emt 0:00:12]} dxe5 {[%emt 0:00:07]}
13. Qe2 {[%emt 0:00:27]} Nc5 {[%emt 0:00:01]} 14. Nd2 {[%emt 0:00:09]} Nxb3 {
[%emt 0:00:13]} 15. Nxb3 {[%emt 0:00:01]} g6 {[%emt 0:00:07]} 16. Qf3 {[%emt 0:
00:08]} Nh7 {[%emt 0:00:12]} 17. Rad1 {[%emt 0:00:05]} Bg7 {[%emt 0:00:06]} 18.
Qg3 {[%emt 0:00:17]} b6 {[%emt 0:00:09]} 19. Qh4 {[%emt 0:00:04]} g5 {[%emt 0:
00:06]} 20. Qg3 {[%emt 0:00:05]} Nf6 {[%emt 0:00:01]} 21. h4 {[%emt 0:00:11]}
Nh5 {[%emt 0:00:13]} 22. Qf3 {[%emt 0:00:03]} Nf4 {[%emt 0:00:01]} 23. hxg5 {
[%emt 0:00:04]} hxg5 {[%emt 0:00:00]} 24. Bxf4 {[%emt 0:00:19]} exf4 {[%emt 0:
00:19]} 25. Qh5 {[%emt 0:00:06]} Qe5 {[%emt 0:00:29]} 26. Rd3 {[%emt 0:00:14]}
g4 {[%emt 0:00:22]} 27. Qxe5 {[%emt 0:00:04]} Bxe5 {[%emt 0:00:01]} 28. Nd4 {
[%emt 0:00:02]} Ba6 {[%emt 0:00:18]} 29. Rdd1 {[%emt 0:00:07]} Kg7 {[%emt 0:00:
17]} 30. Nxc6 {[%emt 0:00:03]} Bxc3 {[%emt 0:00:01]} 31. bxc3 Rac8 32. Nb4 {
[%emt 0:00:04]} Bb7 {[%emt 0:00:02]} 33. Rd7 {[%emt 0:00:15]} Bxe4 {[%emt 0:00:
03]} 34. Rxa7 {[%emt 0:00:06]} Rxc3 {[%emt 0:00:01]} 35. a5 {[%emt 0:00:11]}
bxa5 {[%emt 0:00:09]} 36. Rxa5 {[%emt 0:00:02]} Kg6 {[%emt 0:00:01]} 37. Nd3 {
[%emt 0:00:08]} Rxc2 {[%emt 0:00:11]} 38. Nxf4+ {[%emt 0:00:02]} Kg7 {[%emt 0:
00:02]} 39. Rg5+ {[%emt 0:00:06]} Kf8 {[%emt 0:00:10]} 40. Rxg4 {[%emt 0:00:02]
} f5 {[%emt 0:00:05]} 41. Rg5 {[%emt 0:00:02]} Rec8 {[%emt 0:00:01]} 42. g4 {
[%emt 0:00:08]} Kf7 {[%emt 0:00:02]} 43. gxf5 {[%emt 0:00:03]} Kf6 {[%emt 0:00:
02]} 44. Rg3 {[%emt 0:00:10]} Kxf5 {[%emt 0:00:05]} 45. Rge3 {[%emt 0:00:01]}
R8c4 {[%emt 0:00:04]} 46. Ne2 {[%emt 0:00:04]} Bc6 {[%emt 0:00:08]} 47. Ng3+ {
[%emt 0:00:02]} Kg4 {[%emt 0:00:01]} 48. Re7 {[%emt 0:00:02]} Rc1 {[%emt 0:00:
02]} 49. R7e3 {[%emt 0:00:03]} Kg5 {[%emt 0:00:03]} 50. Kh2 {[%emt 0:00:02]}
Rh4+ {[%emt 0:00:02]} 51. Kg1 {[%emt 0:00:01]} Rhc4 {[%emt 0:00:01]} 52. Kh2 {
[%emt 0:00:03]} Rxe1 53. Rxe1 {[%emt 0:00:00]} Rh4+ {[%emt 0:00:06]} 54. Kg1 {
[%emt 0:00:01]} Kf4 {[%emt 0:00:00]} 55. Rc1 {[%emt 0:00:02]} Bd5 {[%emt 0:00:
02]} 56. Ra1 {[%emt 0:00:02]} Rh7 {[%emt 0:00:03]} 57. Ra4+ {[%emt 0:00:01]}
Ke5 {[%emt 0:00:01]} 58. Ra5 {[%emt 0:00:01]} Kd6 {[%emt 0:00:03]} 59. Ra6+ {
[%emt 0:00:02]} Ke5 {[%emt 0:00:01]} 60. Ra5 {[%emt 0:00:01]} Kd6 {[%emt 0:00:
01]} 61. Ra1 {[%emt 0:00:01]} Ke5 {[%emt 0:00:01]} 62. Ra5 {[%emt 0:00:01]} Kd6
{[%emt 0:00:01]} 63. f4 {[%emt 0:00:02]} Rh3 {[%emt 0:00:03]} 64. Kf2 {[%emt 0:
00:03]} Rh2+ {[%emt 0:00:00]} 65. Ke3 {[%emt 0:00:01]} Rg2 {[%emt 0:00:03]} 66.
Nf5+ {[%emt 0:00:02]} Kc6 {[%emt 0:00:00]} 67. Nd4+ {[%emt 0:00:01]} Kd6 {
[%emt 0:00:02]} 68. Ra6+ {[%emt 0:00:02]} Kc5 {[%emt 0:00:00]} 69. Ra5+ {
[%emt 0:00:01]} Kc4 {[%emt 0:00:02]} 70. Nf5 {[%emt 0:00:04]} Rb2 {[%emt 0:00:
03]} 71. Ra4+ {[%emt 0:00:03]} Kc5 {[%emt 0:00:01]} 72. Ra5+ {[%emt 0:00:02]}
Kc4 {[%emt 0:00:02]} 73. Ra4+ {[%emt 0:00:01]} Kc5 {[%emt 0:00:01]} 74. Ra7 {
[%emt 0:00:03]} Rb3+ {[%emt 0:00:00]} 75. Kd2 {[%emt 0:00:02]} Be4 {[%emt 0:00:
02]} 76. Ne7 {[%emt 0:00:03]} Kd4 {[%emt 0:00:00]} 77. Ra4+ {[%emt 0:00:01]}
Kc5 {[%emt 0:00:03]} 78. Rxe4 {[%emt 0:00:02]} Kd6 {[%emt 0:00:00]} 79. Nf5+ {
[%emt 0:00:02]} Kd5 {[%emt 0:00:00]} 80. Re8 {[%emt 0:00:02]} Rf3 {[%emt 0:00:
01]} 81. Ne3+ {[%emt 0:00:01]} Kd4 {[%emt 0:00:02]} 82. f5 {[%emt 0:00:03]}
Rf2+ {[%emt 0:00:01]} 83. Ke1 {[%emt 0:00:02]} Ra2 {[%emt 0:00:03]} 84. f6 {
[%emt 0:00:02]} Ra1+ {[%emt 0:00:05]} 85. Kf2 {[%emt 0:00:02]} Ra2+ {[%emt 0:
00:00]} 86. Kf1 {[%emt 0:00:02]} Ra1+ {[%emt 0:00:01]} 87. Kg2 {[%emt 0:00:04]}
Ra2+ {[%emt 0:00:01]} 88. Kg1 {[%emt 0:00:02]} Ra7 {[%emt 0:00:00]} 89. Re7 {
[%emt 0:00:05]} Ra8 {[%emt 0:00:01]} 90. Nf5+ {[%emt 0:00:03]} Kd5 {[%emt 0:00:
01]} 91. f7 {[%emt 0:00:03]} Rf8 {[%emt 0:00:01]} 92. Nh6 {[%emt 0:00:01]} 1-0

[Event "FIDE Women World Blitz 2021"]
[Site "Warsaw"]
[Date "2021.12.30"]
[Round "12.8"]
[White "Socko, Monika"]
[Black "Stefanova, Antoaneta"]
[Result "1-0"]
[ECO "D10"]
[WhiteElo "2393"]
[BlackElo "2475"]
[Annotator "ChessBase"]
[PlyCount "67"]
[EventDate "2021.12.29"]
[EventType "swiss"]
[EventCountry "POL"]
[Tiebreak "Cut1 Buchholz"]
[SourceTitle "playchess.com"]
[Source "ChessBase"]
[SourceQuality "1"]
[TimeControl "180+2"]

1. d4 {[%emt 0:00:02]} d5 {[%emt 0:00:00]} 2. c4 {[%emt 0:00:01]} c6 {[%emt 0:
00:02]} 3. cxd5 {[%emt 0:00:02]} cxd5 {[%emt 0:00:01]} 4. Bf4 {[%emt 0:00:02]}
Nf6 {[%emt 0:00:05]} 5. Nc3 {[%emt 0:00:01]} a6 {[%emt 0:00:05]} 6. e3 {
[%emt 0:00:03]} Nc6 {[%emt 0:00:01]} 7. Bd3 {[%emt 0:00:08]} Bg4 {[%emt 0:00:
02]} 8. Nge2 {[%emt 0:00:02]} e6 {[%emt 0:00:00]} 9. Rc1 {[%emt 0:00:05]} Be7 {
[%emt 0:00:04]} 10. O-O {[%emt 0:00:03]} O-O {[%emt 0:00:02]} 11. Na4 {[%emt 0:
00:02]} Nd7 {[%emt 0:00:19]} 12. a3 {[%emt 0:00:08]} e5 {[%emt 0:00:22]} 13.
dxe5 {[%emt 0:00:19]} Ndxe5 {[%emt 0:00:01]} 14. Nc5 {[%emt 0:00:22]} Nxd3 {
[%emt 0:00:23]} 15. Qxd3 {[%emt 0:00:08]} Bf6 {[%emt 0:00:07]} 16. b4 {[%emt 0:
00:17]} Bxe2 {[%emt 0:00:24]} 17. Qxe2 {[%emt 0:00:02]} Qe7 {[%emt 0:00:01]}
18. Qf3 {[%emt 0:00:08]} Rfd8 {[%emt 0:00:08]} 19. Rfd1 {[%emt 0:00:01]} d4 {
[%emt 0:00:23]} 20. Nxb7 {[%emt 0:00:31]} Qxb7 {[%emt 0:00:01]} 21. Qxc6 {
[%emt 0:00:01]} Qxc6 {[%emt 0:00:01]} 22. Rxc6 {[%emt 0:00:02]} dxe3 {[%emt 0:
00:04]} 23. Rxd8+ {[%emt 0:00:10]} Bxd8 {[%emt 0:00:15]} 24. Bxe3 {[%emt 0:00:
00]} h6 {[%emt 0:00:08]} 25. g3 {[%emt 0:00:00]} a5 {[%emt 0:00:03]} 26. b5 {
[%emt 0:00:00]} a4 {[%emt 0:00:02]} 27. Ra6 {[%emt 0:00:06]} Rb8 {[%emt 0:00:
23]} 28. Rxa4 {[%emt 0:00:06]} Kh7 {[%emt 0:00:10]} 29. Rb4 {[%emt 0:00:04]}
Ba5 {[%emt 0:00:05]} 30. Rb3 {[%emt 0:00:01]} g5 {[%emt 0:00:02]} 31. b6 {
[%emt 0:00:04]} Rb7 {[%emt 0:00:01]} 32. Rb5 {[%emt 0:00:03]} Bc3 {[%emt 0:00:
02]} 33. a4 {[%emt 0:00:02]} Kg6 {[%emt 0:00:02]} 34. a5 {[%emt 0:00:03]} 1-0

[Event "FIDE Women World Blitz 2021"]
[Site "Warsaw"]
[Date "2021.12.30"]
[Round "12.8"]
[White "Budkiewicz, Magdalena"]
[Black "Nurgali, Nazerke"]
[Result "0-1"]
[ECO "B15"]
[WhiteElo "1624"]
[BlackElo "2267"]
[Annotator "NA"]
[PlyCount "74"]
[EventDate "2021.12.29"]
[EventType "swiss"]
[EventCountry "POL"]
[Tiebreak "Cut1 Buchholz"]
[SourceTitle "playchess.com"]
[Source "ChessBase"]
[SourceQuality "1"]
[TimeControl "180+2"]

1. e4 {[%emt 0:00:00]} c6 {[%emt 0:00:01]} 2. d4 {[%emt 0:00:01]} d5 {[%emt 0:
00:00]} 3. Nc3 {[%emt 0:00:01]} dxe4 {[%emt 0:00:01]} 4. Nxe4 {[%emt 0:00:01]}
Nf6 {[%emt 0:00:01]} 5. Nxf6+ {[%emt 0:00:02]} exf6 {[%emt 0:00:01]} 6. Be2 {
[%emt 0:00:07]} Bd6 {[%emt 0:00:02]} 7. h3 {[%emt 0:00:01]} O-O {[%emt 0:00:02]
} 8. Nf3 {[%emt 0:00:02]} Na6 {[%emt 0:00:01]} 9. O-O {[%emt 0:00:03]} Nc7 {
[%emt 0:00:01]} 10. Nd2 {[%emt 0:00:14]} Ne6 {[%emt 0:00:06]} 11. Nc4 {[%emt 0:
00:05]} Bc7 {[%emt 0:00:02]} 12. c3 {[%emt 0:00:02]} Re8 {[%emt 0:00:09]} 13.
Bd3 {[%emt 0:00:08]} Nf8 {[%emt 0:00:14]} 14. Qc2 {[%emt 0:00:03]} Be6 {
[%emt 0:00:04]} 15. Bd2 {[%emt 0:00:09]} Ng6 {[%emt 0:00:09]} 16. Rfe1 {
[%emt 0:00:04]} b5 {[%emt 0:00:06]} 17. Ne3 {[%emt 0:00:07]} Qd6 {[%emt 0:00:
02]} 18. Nf1 {[%emt 0:00:08]} Qd7 {[%emt 0:00:16]} 19. Qd1 {[%emt 0:00:36]}
Rad8 {[%emt 0:00:17]} 20. Be3 {[%emt 0:00:19]} Bxh3 {[%emt 0:00:31]} 21. Bxg6 {
[%emt 0:00:11]} hxg6 {[%emt 0:00:06]} 22. gxh3 {[%emt 0:00:06]} Qxh3 {[%emt 0:
00:02]} 23. Qd2 {[%emt 0:00:35]} Re4 {[%emt 0:00:12]} 24. f4 {[%emt 0:00:14]}
Rde8 {[%emt 0:00:16]} 25. Qg2 {[%emt 0:00:09]} Qf5 {[%emt 0:00:07]} 26. Ng3 {
[%emt 0:00:05]} Qd5 {[%emt 0:00:15]} 27. Nxe4 {[%emt 0:00:02]} Rxe4 {[%emt 0:
00:01]} 28. Rad1 {[%emt 0:00:03]} f5 {[%emt 0:00:09]} 29. b3 {[%emt 0:00:03]}
g5 {[%emt 0:00:08]} 30. Bc1 {[%emt 0:00:01]} gxf4 {[%emt 0:00:04]} 31. Rxe4
fxe4 {[%emt 0:00:01]} 32. Rf1 {[%emt 0:00:07]} f3 {[%emt 0:00:08]} 33. Qg5 {
[%emt 0:00:07]} Qd6 {[%emt 0:00:04]} 34. Qh4 {[%emt 0:00:02]} Qg6+ {[%emt 0:00:
02]} 35. Kf2 {[%emt 0:00:02]} Qg2+ {[%emt 0:00:03]} 36. Ke3 {[%emt 0:00:02]}
Qxf1 {[%emt 0:00:06]} 37. Bd2 {[%emt 0:00:00]} Qe2# {[%emt 0:00:02]} 0-1

[Event "FIDE Women World Blitz 2021"]
[Site "Warsaw"]
[Date "2021.12.30"]
[Round "12.9"]
[White "Balajayeva, Khanim"]
[Black "Kosteniuk, Alexandra"]
[Result "0-1"]
[ECO "B13"]
[WhiteElo "2369"]
[BlackElo "2518"]
[Annotator "ChessBase"]
[PlyCount "120"]
[EventDate "2021.12.29"]
[EventType "swiss"]
[EventCountry "POL"]
[Tiebreak "Cut1 Buchholz"]
[SourceTitle "playchess.com"]
[Source "ChessBase"]
[SourceQuality "1"]
[TimeControl "180+2"]

1. e4 {[%emt 0:00:00]} c6 {[%emt 0:00:00]} 2. d4 {[%emt 0:00:02]} d5 {[%emt 0:
00:01]} 3. exd5 {[%emt 0:00:01]} cxd5 {[%emt 0:00:01]} 4. c4 {[%emt 0:00:00]}
Nf6 {[%emt 0:00:01]} 5. Nc3 {[%emt 0:00:01]} Nc6 {[%emt 0:00:01]} 6. Bg5 {
[%emt 0:00:02]} Be6 {[%emt 0:00:28]} 7. Be2 {[%emt 0:00:01]} h6 {[%emt 0:00:08]
} 8. Bxf6 exf6 {[%emt 0:00:01]} 9. Bf3 {[%emt 0:00:03]} Bb4 {[%emt 0:00:01]}
10. Nge2 {[%emt 0:00:03]} O-O {[%emt 0:00:28]} 11. O-O {[%emt 0:00:04]} Ne7 {
[%emt 0:00:04]} 12. Nf4 {[%emt 0:00:13]} Bxc3 {[%emt 0:00:11]} 13. bxc3 {
[%emt 0:00:02]} Qd6 {[%emt 0:00:06]} 14. Nxd5 {[%emt 0:00:31]} Nxd5 {[%emt 0:
00:06]} 15. cxd5 {[%emt 0:00:01]} Bxd5 {[%emt 0:00:01]} 16. Bxd5 {[%emt 0:00:
14]} Qxd5 {[%emt 0:00:01]} 17. Qb3 {[%emt 0:00:08]} Qd7 {[%emt 0:00:02]} 18.
Rfe1 {[%emt 0:00:10]} Rac8 {[%emt 0:00:02]} 19. Re3 {[%emt 0:00:12]} Rfe8 {
[%emt 0:00:05]} 20. Rxe8+ {[%emt 0:00:36]} Rxe8 {[%emt 0:00:02]} 21. Qc2 {
[%emt 0:00:07]} f5 {[%emt 0:00:03]} 22. h3 {[%emt 0:00:02]} Re4 {[%emt 0:00:02]
} 23. Rb1 {[%emt 0:00:02]} b6 {[%emt 0:00:01]} 24. a4 {[%emt 0:00:04]} Qc6 {
[%emt 0:00:03]} 25. Qb3 {[%emt 0:00:43]} f4 {[%emt 0:00:04]} 26. d5 {[%emt 0:
00:11]} Qg6 {[%emt 0:00:03]} 27. Qd1 {[%emt 0:00:08]} Qd6 {[%emt 0:00:14]} 28.
f3 {[%emt 0:00:04]} Rc4 {[%emt 0:00:17]} 29. Qd2 {[%emt 0:00:05]} Rxa4 {
[%emt 0:00:06]} 30. Re1 {[%emt 0:00:01]} g6 {[%emt 0:00:01]} 31. Kh2 {[%emt 0:
00:03]} Rc4 {[%emt 0:00:04]} 32. Qd3 {[%emt 0:00:02]} Rc8 {[%emt 0:00:02]} 33.
c4 {[%emt 0:00:00]} a5 {[%emt 0:00:01]} 34. Rb1 {[%emt 0:00:03]} a4 {[%emt 0:
00:01]} 35. Qd4 {[%emt 0:00:01]} Rb8 {[%emt 0:00:04]} 36. Ra1 {[%emt 0:00:03]}
a3 {[%emt 0:00:01]} 37. Qc3 {[%emt 0:00:01]} Ra8 {[%emt 0:00:01]} 38. Ra2 {
[%emt 0:00:01]} Qe7 {[%emt 0:00:08]} 39. Qb3 {[%emt 0:00:02]} Qc5 {[%emt 0:00:
08]} 40. Rd2 {[%emt 0:00:03]} Re8 {[%emt 0:00:07]} 41. Qb5 {[%emt 0:00:00]}
Qxb5 {[%emt 0:00:06]} 42. cxb5 {[%emt 0:00:01]} Ra8 {[%emt 0:00:04]} 43. Ra2 {
[%emt 0:00:01]} Kf8 {[%emt 0:00:00]} 44. Kg1 {[%emt 0:00:01]} Ke7 45. Kf2 Kd6
46. Ke2 {[%emt 0:00:01]} Kxd5 {[%emt 0:00:02]} 47. Kd3 {[%emt 0:00:01]} Kc5 {
[%emt 0:00:02]} 48. Kc3 {[%emt 0:00:02]} Kxb5 {[%emt 0:00:02]} 49. Kb3 g5 {
[%emt 0:00:03]} 50. Ra1 {[%emt 0:00:02]} a2 {[%emt 0:00:02]} 51. Kb2 {[%emt 0:
00:03]} Kb4 {[%emt 0:00:03]} 52. Kc2 {[%emt 0:00:05]} b5 {[%emt 0:00:03]} 53.
Kb2 {[%emt 0:00:01]} Re8 {[%emt 0:00:01]} 54. Rd1 {[%emt 0:00:03]} Re2+ {
[%emt 0:00:03]} 55. Ka1 {[%emt 0:00:01]} Ka3 {[%emt 0:00:14]} 56. Rd3+ {
[%emt 0:00:07]} Ka4 {[%emt 0:00:01]} 57. Rd1 {[%emt 0:00:06]} b4 {[%emt 0:00:
01]} 58. g4 {[%emt 0:00:01]} fxg3 {[%emt 0:00:04]} 59. f4 {[%emt 0:00:03]} b3 {
[%emt 0:00:02]} 60. fxg5 {[%emt 0:00:03]} Ka3 {[%emt 0:00:03]} 0-1

[Event "FIDE Women World Blitz 2021"]
[Site "Warsaw"]
[Date "2021.12.30"]
[Round "12.9"]
[White "Katkov, Michelle"]
[Black "Rudzinska, Michalina"]
[Result "1-0"]
[ECO "B22"]
[WhiteElo "1651"]
[BlackElo "1832"]
[Annotator "NA"]
[PlyCount "55"]
[EventDate "2021.12.29"]
[EventType "swiss"]
[EventCountry "POL"]
[Tiebreak "Cut1 Buchholz"]
[SourceTitle "playchess.com"]
[Source "ChessBase"]
[SourceQuality "1"]
[TimeControl "180+2"]

1. e4 {[%emt 0:00:01]} c5 {[%emt 0:00:01]} 2. c3 {[%emt 0:00:01]} d5 {[%emt 0:
00:02]} 3. exd5 {[%emt 0:00:01]} Qxd5 {[%emt 0:00:01]} 4. d4 {[%emt 0:00:00]}
Nf6 {[%emt 0:00:01]} 5. Nf3 {[%emt 0:00:01]} Bg4 {[%emt 0:00:03]} 6. Be2 {
[%emt 0:00:01]} e6 {[%emt 0:00:03]} 7. h3 {[%emt 0:00:02]} Bh5 {[%emt 0:00:02]}
8. Be3 {[%emt 0:00:01]} cxd4 {[%emt 0:00:02]} 9. cxd4 {[%emt 0:00:01]} Nc6 {
[%emt 0:00:01]} 10. Nc3 {[%emt 0:00:02]} Qd6 {[%emt 0:00:01]} 11. O-O {[%emt 0:
00:03]} Be7 {[%emt 0:00:02]} 12. Qb3 {[%emt 0:00:04]} O-O {[%emt 0:00:02]} 13.
Rfd1 {[%emt 0:00:06]} a6 {[%emt 0:00:02]} 14. a3 {[%emt 0:00:02]} Rfd8 {
[%emt 0:00:13]} 15. Rac1 {[%emt 0:00:01]} Rac8 {[%emt 0:00:07]} 16. d5 {
[%emt 0:00:30]} exd5 {[%emt 0:00:22]} 17. g4 {[%emt 0:00:03]} Bg6 {[%emt 0:00:
02]} 18. g5 {[%emt 0:00:01]} Ne4 {[%emt 0:00:11]} 19. Nxd5 {[%emt 0:00:07]} Na5
{[%emt 0:00:20]} 20. Qa4 {[%emt 0:01:06]} Rxc1 {[%emt 0:00:03]} 21. Bxc1 {
[%emt 0:00:02]} Qe6 {[%emt 0:01:45]} 22. Nxe7+ {[%emt 0:00:17]} Qxe7 {[%emt 0:
00:01]} 23. Qxa5 {[%emt 0:00:03]} Rxd1+ {[%emt 0:00:02]} 24. Bxd1 {[%emt 0:00:
02]} Nd6 {[%emt 0:00:06]} 25. Be3 {[%emt 0:00:13]} Be4 {[%emt 0:00:01]} 26. Qe5
{[%emt 0:00:11]} Qd7 {[%emt 0:00:03]} 27. Bf4 {[%emt 0:00:13]} Nb5 {[%emt 0:00:
13]} 28. Qb8+ {[%emt 0:00:03]} 1-0

[Event "FIDE Women World Blitz 2021"]
[Site "Warsaw"]
[Date "2021.12.30"]
[Round "12.10"]
[White "Bodnaruk, Anastasia"]
[Black "Girya, Olga"]
[Result "1/2-1/2"]
[ECO "C26"]
[WhiteElo "2396"]
[BlackElo "2402"]
[Annotator "NA"]
[PlyCount "118"]
[EventDate "2021.12.29"]
[EventType "swiss"]
[EventCountry "POL"]
[Tiebreak "Cut1 Buchholz"]
[SourceTitle "playchess.com"]
[Source "ChessBase"]
[SourceQuality "1"]
[TimeControl "180+2"]

1. e4 {[%emt 0:00:00]} e5 {[%emt 0:00:00]} 2. Nc3 {[%emt 0:00:01]} Nf6 {
[%emt 0:00:04]} 3. d4 {[%emt 0:00:02]} exd4 {[%emt 0:00:02]} 4. Qxd4 {[%emt 0:
00:01]} Nc6 {[%emt 0:00:01]} 5. Qd3 {[%emt 0:00:01]} Bc5 {[%emt 0:00:06]} 6.
Bf4 {[%emt 0:00:04]} d6 {[%emt 0:00:11]} 7. O-O-O {[%emt 0:00:01]} Bxf2 {
[%emt 0:00:08]} 8. Nf3 {[%emt 0:00:03]} Be6 {[%emt 0:00:22]} 9. Qd2 {[%emt 0:
00:12]} Bb6 {[%emt 0:00:07]} 10. Bg5 {[%emt 0:00:12]} h6 {[%emt 0:00:08]} 11.
Bh4 {[%emt 0:00:01]} g5 {[%emt 0:00:13]} 12. Bg3 {[%emt 0:00:03]} Ng4 {[%emt 0:
00:28]} 13. Kb1 {[%emt 0:00:16]} Qe7 {[%emt 0:00:20]} 14. Bb5 {[%emt 0:00:05]}
O-O-O {[%emt 0:00:09]} 15. Rhe1 {[%emt 0:00:22]} Nge5 {[%emt 0:00:09]} 16. Nd5
{[%emt 0:00:10]} Qf8 {[%emt 0:00:13]} 17. Qc3 {[%emt 0:00:28]} f6 {[%emt 0:00:
09]} 18. a3 {[%emt 0:00:16]} Kb8 {[%emt 0:00:04]} 19. Rf1 {[%emt 0:00:07]} Qg7
{[%emt 0:00:07]} 20. Nxe5 {[%emt 0:00:10]} Nxe5 {[%emt 0:00:13]} 21. Nxf6 {
[%emt 0:00:09]} Ng4 {[%emt 0:00:09]} 22. Rf3 {[%emt 0:00:29]} Nxf6 {[%emt 0:00:
06]} 23. Qxf6 {[%emt 0:00:14]} Qxf6 {[%emt 0:00:05]} 24. Rxf6 {[%emt 0:00:01]}
Bg4 {[%emt 0:00:02]} 25. Rdf1 {[%emt 0:00:04]} a6 {[%emt 0:00:04]} 26. Ba4 {
[%emt 0:00:05]} Bd4 {[%emt 0:00:02]} 27. Rf7 {[%emt 0:00:05]} Be6 {[%emt 0:00:
02]} 28. Re7 {[%emt 0:00:03]} Bc4 {[%emt 0:00:03]} 29. Rd1 {[%emt 0:00:03]} Bf6
{[%emt 0:00:02]} 30. Rd7 {[%emt 0:00:02]} b5 {[%emt 0:00:02]} 31. Rxd8+ {
[%emt 0:00:01]} Rxd8 {[%emt 0:00:01]} 32. Bb3 Bxb3 33. cxb3 {[%emt 0:00:01]}
Re8 {[%emt 0:00:02]} 34. Re1 {[%emt 0:00:09]} Kb7 {[%emt 0:00:03]} 35. Kc2 {
[%emt 0:00:01]} Kc6 {[%emt 0:00:02]} 36. b4 {[%emt 0:00:02]} Be5 {[%emt 0:00:
05]} 37. Bxe5 {[%emt 0:00:04]} Rxe5 {[%emt 0:00:01]} 38. Kd3 {[%emt 0:00:01]}
d5 {[%emt 0:00:03]} 39. exd5+ {[%emt 0:00:06]} Kxd5 {[%emt 0:00:02]} 40. Rc1 {
[%emt 0:00:02]} Kd6 {[%emt 0:00:04]} 41. Rf1 {[%emt 0:00:01]} Rd5+ {[%emt 0:00:
05]} 42. Kc2 {[%emt 0:00:00]} Re5 {[%emt 0:00:01]} 43. Kd3 {[%emt 0:00:01]}
Rd5+ {[%emt 0:00:01]} 44. Kc3 {[%emt 0:00:01]} Re5 {[%emt 0:00:01]} 45. Rf2 {
[%emt 0:00:03]} Kd5 {[%emt 0:00:02]} 46. Kd3 {[%emt 0:00:02]} Re6 {[%emt 0:00:
02]} 47. Rf7 {[%emt 0:00:01]} Kd6 {[%emt 0:00:01]} 48. g4 {[%emt 0:00:02]} c5 {
[%emt 0:00:03]} 49. bxc5+ {[%emt 0:00:02]} Kxc5 {[%emt 0:00:01]} 50. b4+ {
[%emt 0:00:00]} Kd5 {[%emt 0:00:01]} 51. Rd7+ {[%emt 0:00:02]} Ke5 {[%emt 0:00:
02]} 52. Rf7 {[%emt 0:00:03]} Rc6 {[%emt 0:00:01]} 53. Rf5+ {[%emt 0:00:03]}
Ke6 {[%emt 0:00:01]} 54. Rf8 {[%emt 0:00:03]} Ke5 {[%emt 0:00:01]} 55. h3 {
[%emt 0:00:02]} Kd5 {[%emt 0:00:04]} 56. Rf5+ {[%emt 0:00:01]} Ke6 {[%emt 0:00:
01]} 57. Rf8 {[%emt 0:00:01]} Kd5 {[%emt 0:00:02]} 58. Rf5+ {[%emt 0:00:01]}
Ke6 {[%emt 0:00:00]} 59. Rf8 {[%emt 0:00:02]} Ke5 {[%emt 0:00:04]} 1/2-1/2